[Event "Titled Tuesday Blitz April 05 Early 2022"]
[White "Becerra, Juan David"]
[Black "Namitbir Singh Walia"]
[WhiteFideId "4404998"]
[BlackFideId "35071068"]
[WhiteElo "2277"]
[BlackElo "1565"]
[Result "1/2-1/2"]
[Round "10"]
[TimeControl "180+1"]
[Date "2022.04.05"]
[WhiteClock "0:00:13"]
[BlackClock "0:00:11"]

1. e4 {[%clk 0:03:00]}  c5 {[%clk 0:02:58]} 2. c3 {[%clk 0:02:51]}  d5 {[%clk 0:02:58]} 3. exd5 {[%clk 0:02:39]}  Qxd5 {[%clk 0:02:59]} 4. d4 {[%clk 0:02:34]}  Nf6 {[%clk 0:02:56]} 5. Nf3 {[%clk 0:02:30]}  e6 {[%clk 0:02:52]} 6. Bd3 {[%clk 0:02:25]}  Nc6 {[%clk 0:02:50]} 7. O-O {[%clk 0:02:17]}  Be7 {[%clk 0:02:47]} 8. Be3 {[%clk 0:02:12]}  O-O {[%clk 0:02:45]} 9. dxc5 {[%clk 0:02:09]}  Bxc5 {[%clk 0:02:45]} 10. Bxh7+ {[%clk 0:02:08]}  Kxh7 {[%clk 0:02:27]} 11. Qxd5 {[%clk 0:02:09]}  exd5 {[%clk 0:02:19]} 12. Bxc5 {[%clk 0:02:07]}  Re8 {[%clk 0:02:19]} 13. Nbd2 {[%clk 0:02:04]}  b6 {[%clk 0:02:15]} 14. Bd4 {[%clk 0:02:03]}  Bg4 {[%clk 0:02:07]} 15. Bxf6 {[%clk 0:01:57]}  gxf6 {[%clk 0:02:07]} 16. Rfe1 {[%clk 0:01:58]}  Ne5 {[%clk 0:02:00]} 17. h3 {[%clk 0:01:51]}  Bxf3 {[%clk 0:01:54]} 18. Nxf3 {[%clk 0:01:52]}  Nxf3+ {[%clk 0:01:53]} 19. gxf3 {[%clk 0:01:51]}  Kg6 {[%clk 0:01:46]} 20. Rad1 {[%clk 0:01:44]}  Rxe1+ {[%clk 0:01:36]} 21. Rxe1 {[%clk 0:01:45]}  Kf5 {[%clk 0:01:36]} 22. Re7 {[%clk 0:01:44]}  Kf4 {[%clk 0:01:10]} 23. Rxf7 {[%clk 0:01:41]}  f5 {[%clk 0:01:09]} 24. Rd7 {[%clk 0:01:35]}  Rg8+ {[%clk 0:00:50]} 25. Kf1 {[%clk 0:01:33]}  Rh8 {[%clk 0:00:33]} 26. Rxd5 {[%clk 0:01:25]}  Rxh3 {[%clk 0:00:33]} 27. Ke2 {[%clk 0:01:25]}  Rh1 {[%clk 0:00:32]} 28. Rd4+ {[%clk 0:01:24]}  Ke5 {[%clk 0:00:32]} 29. Ra4 {[%clk 0:01:25]}  Rb1 {[%clk 0:00:31]} 30. f4+ {[%clk 0:01:23]}  Kd5 {[%clk 0:00:29]} 31. b3 {[%clk 0:01:24]}  Rb2+ {[%clk 0:00:26]} 32. Ke3 {[%clk 0:01:18]}  a5 {[%clk 0:00:26]} 33. Rd4+ {[%clk 0:01:04]}  Kc5 {[%clk 0:00:25]} 34. b4+ {[%clk 0:00:56]}  axb4 {[%clk 0:00:17]} 35. cxb4+ {[%clk 0:00:44]}  Rxb4 {[%clk 0:00:16]} 36. Rxb4 {[%clk 0:00:25]}  Kxb4 {[%clk 0:00:17]} 37. Kd4 {[%clk 0:00:26]}  Ka3 {[%clk 0:00:18]} 38. Kc4 {[%clk 0:00:25]}  Kxa2 {[%clk 0:00:16]} 39. Kb5 {[%clk 0:00:25]}  Kb3 {[%clk 0:00:17]} 40. Kxb6 {[%clk 0:00:26]}  Kc4 {[%clk 0:00:17]} 41. Kc6 {[%clk 0:00:20]}  Kd4 {[%clk 0:00:18]} 42. Kd6 {[%clk 0:00:17]}  Ke4 {[%clk 0:00:18]} 43. Ke6 {[%clk 0:00:16]}  Kxf4 {[%clk 0:00:18]} 44. Kf6 {[%clk 0:00:14]}  Kg4 {[%clk 0:00:16]} 45. Ke5 {[%clk 0:00:14]}  Kg5 {[%clk 0:00:15]} 46. f3 {[%clk 0:00:12]}  f4 {[%clk 0:00:11]} 47. Ke4 {[%clk 0:00:10]}  Kg6 {[%clk 0:00:11]} 48. Kxf4 {[%clk 0:00:11]}  Kf6 {[%clk 0:00:11]} 49. Ke4 {[%clk 0:00:11]}  Ke6 {[%clk 0:00:11]} 50. Kf4 {[%clk 0:00:12]}  Kf6 {[%clk 0:00:12]} 51. Kg4 {[%clk 0:00:11]}  Kg6 {[%clk 0:00:12]} 52. f4 {[%clk 0:00:12]}  Kf6 {[%clk 0:00:12]} 53. f5 {[%clk 0:00:13]}  Kf7 {[%clk 0:00:13]} 54. Kg5 {[%clk 0:00:11]}  Kg7 {[%clk 0:00:13]} 55. f6+ {[%clk 0:00:11]}  Kf7 {[%clk 0:00:13]} 56. Kf5 {[%clk 0:00:11]}  Kf8 {[%clk 0:00:13]} 57. Ke5 {[%clk 0:00:08]}  Kf7 {[%clk 0:00:11]} 58. Kf5 {[%clk 0:00:09]}  Kf8 {[%clk 0:00:11]} 59. Kg6 {[%clk 0:00:10]}  Kg8 {[%clk 0:00:11]} 60. Kh6 {[%clk 0:00:11]}  Kf7 {[%clk 0:00:11]} 61. Kg5 {[%clk 0:00:12]}  Kf8 {[%clk 0:00:11]} 62. Kf4 {[%clk 0:00:13]}  Kf7 {[%clk 0:00:11]} 63. Kf5 {[%clk 0:00:13]} 1/2-1/2


[Site "https://www.chess.com"]

[Event "Titled Tuesday Blitz April 05 Early 2022"]
[White "Brodowski, Piotr"]
[Black "Pesotskiy, Mikhail"]
[WhiteFideId "1124480"]
[BlackFideId "34164453"]
[WhiteElo "2422"]
[BlackElo "2010"]
[Result "1-0"]
[Round "10"]
[TimeControl "180+1"]
[Date "2022.04.05"]
[WhiteClock "0:01:43"]
[BlackClock "0:00:17"]

1. e4 {[%clk 0:03:00]}  e6 {[%clk 0:02:19]} 2. d4 {[%clk 0:03:00]}  d5 {[%clk 0:02:18]} 3. Nd2 {[%clk 0:02:58]}  Nf6 {[%clk 0:02:18]} 4. e5 {[%clk 0:02:58]}  Nfd7 {[%clk 0:02:19]} 5. f4 {[%clk 0:02:58]}  c5 {[%clk 0:02:20]} 6. c3 {[%clk 0:02:58]}  Nc6 {[%clk 0:02:21]} 7. Ndf3 {[%clk 0:02:59]}  Qb6 {[%clk 0:02:21]} 8. a3 {[%clk 0:02:41]}  c4 {[%clk 0:02:20]} 9. h4 {[%clk 0:02:39]}  Na5 {[%clk 0:02:21]} 10. h5 {[%clk 0:02:30]}  Nb3 {[%clk 0:02:15]} 11. Rb1 {[%clk 0:02:31]}  Qb5 {[%clk 0:02:01]} 12. Be3 {[%clk 0:02:29]}  Nb6 {[%clk 0:02:00]} 13. g4 {[%clk 0:02:25]}  Bd7 {[%clk 0:02:01]} 14. Kf2 {[%clk 0:02:25]}  Be7 {[%clk 0:02:00]} 15. Kg3 {[%clk 0:02:25]}  O-O-O {[%clk 0:02:01]} 16. Ne2 {[%clk 0:02:22]}  Rdf8 {[%clk 0:01:59]} 17. Bh3 {[%clk 0:02:22]}  f6 {[%clk 0:01:54]} 18. Rf1 {[%clk 0:02:21]}  Kb8 {[%clk 0:01:52]} 19. Kh2 {[%clk 0:02:15]}  Be8 {[%clk 0:01:45]} 20. Ng3 {[%clk 0:02:15]}  Nd7 {[%clk 0:01:43]} 21. f5 {[%clk 0:02:09]}  Bf7 {[%clk 0:01:23]} 22. g5 {[%clk 0:02:06]}  exf5 {[%clk 0:01:20]} 23. Nxf5 {[%clk 0:02:04]}  Bxh5 {[%clk 0:00:51]} 24. Nxe7 {[%clk 0:02:03]}  fxe5 {[%clk 0:00:51]} 25. Nxe5 {[%clk 0:01:53]}  Bxd1 {[%clk 0:00:49]} 26. Nxd7+ {[%clk 0:01:53]}  Ka8 {[%clk 0:00:49]} 27. Nxf8 {[%clk 0:01:53]}  Be2 {[%clk 0:00:16]} 28. Ne6 {[%clk 0:01:44]}  Qe8 {[%clk 0:00:17]} 29. Nc7+ {[%clk 0:01:43]} 1-0


[Site "https://www.chess.com"]

[Event "Titled Tuesday Blitz April 05 Early 2022"]
[White "Cagara, Paulina"]
[Black "Polster, Christian"]
[WhiteFideId "1124870"]
[BlackFideId "12965081"]
[WhiteElo "1780"]
[BlackElo "2321"]
[Result "0-1"]
[Round "10"]
[TimeControl "180+1"]
[Date "2022.04.05"]
[WhiteClock "0:01:22"]
[BlackClock "0:01:31"]

1. e4 {[%clk 0:03:00]}  c5 {[%clk 0:02:59]} 2. Nc3 {[%clk 0:03:00]}  a6 {[%clk 0:02:58]} 3. g3 {[%clk 0:02:59]}  b5 {[%clk 0:02:57]} 4. Bg2 {[%clk 0:02:59]}  Bb7 {[%clk 0:02:58]} 5. d3 {[%clk 0:02:58]}  e6 {[%clk 0:02:59]} 6. Nge2 {[%clk 0:02:57]}  Ne7 {[%clk 0:02:59]} 7. O-O {[%clk 0:02:57]}  d5 {[%clk 0:02:58]} 8. exd5 {[%clk 0:02:53]}  Nxd5 {[%clk 0:02:58]} 9. Nxd5 {[%clk 0:02:50]}  Bxd5 {[%clk 0:02:59]} 10. Nf4 {[%clk 0:02:47]}  Bxg2 {[%clk 0:02:58]} 11. Nxg2 {[%clk 0:02:47]}  Nc6 {[%clk 0:02:58]} 12. a4 {[%clk 0:02:47]}  Be7 {[%clk 0:02:55]} 13. axb5 {[%clk 0:02:46]}  axb5 {[%clk 0:02:56]} 14. Rxa8 {[%clk 0:02:45]}  Qxa8 {[%clk 0:02:57]} 15. Qf3 {[%clk 0:02:32]}  O-O {[%clk 0:02:55]} 16. Nf4 {[%clk 0:02:31]}  Nd4 {[%clk 0:02:24]} 17. Qxa8 {[%clk 0:02:30]}  Rxa8 {[%clk 0:02:25]} 18. c3 {[%clk 0:02:30]}  Nb3 {[%clk 0:02:25]} 19. Be3 {[%clk 0:02:19]}  Ra2 {[%clk 0:02:24]} 20. Rb1 {[%clk 0:02:11]}  Bf6 {[%clk 0:02:10]} 21. h4 {[%clk 0:02:05]}  b4 {[%clk 0:02:00]} 22. cxb4 {[%clk 0:01:56]}  cxb4 {[%clk 0:01:59]} 23. Bc1 {[%clk 0:01:43]}  g6 {[%clk 0:01:50]} 24. Ne2 {[%clk 0:01:38]}  Nxc1 {[%clk 0:01:46]} 25. Nxc1 {[%clk 0:01:38]}  Rxb2 {[%clk 0:01:46]} 26. Ra1 {[%clk 0:01:34]}  Kg7 {[%clk 0:01:38]} 27. Ra7 {[%clk 0:01:28]}  Rxf2 {[%clk 0:01:35]} 28. Nb3 {[%clk 0:01:22]}  Rb2 {[%clk 0:01:32]} 29. Na5 {[%clk 0:01:22]}  Bd4+ {[%clk 0:01:31]} 0-1


[Site "https://www.chess.com"]

[Event "Titled Tuesday Blitz April 05 Early 2022"]
[White "Derraugh, Geordie"]
[Black "Tasev, Dejan"]
[WhiteFideId "2603950"]
[BlackFideId "936618"]
[WhiteElo "2116"]
[BlackElo "2253"]
[Result "0-1"]
[Round "10"]
[TimeControl "180+1"]
[Date "2022.04.05"]
[WhiteClock "0:00:20"]
[BlackClock "0:00:27"]

1. e4 {[%clk 0:03:00]}  e5 {[%clk 0:02:59]} 2. Nf3 {[%clk 0:03:00]}  Nf6 {[%clk 0:02:59]} 3. Nxe5 {[%clk 0:03:00]}  Nc6 {[%clk 0:02:59]} 4. Nxc6 {[%clk 0:03:00]}  dxc6 {[%clk 0:02:59]} 5. d3 {[%clk 0:03:00]}  Bc5 {[%clk 0:02:59]} 6. Be2 {[%clk 0:03:00]}  Bb6 {[%clk 0:02:58]} 7. O-O {[%clk 0:03:00]}  Be6 {[%clk 0:02:52]} 8. c3 {[%clk 0:03:00]}  Qd7 {[%clk 0:02:51]} 9. a4 {[%clk 0:02:59]}  a5 {[%clk 0:02:50]} 10. Be3 {[%clk 0:02:59]}  c5 {[%clk 0:02:47]} 11. Nd2 {[%clk 0:02:57]}  Ng4 {[%clk 0:02:39]} 12. Nf3 {[%clk 0:02:40]}  Nxe3 {[%clk 0:02:36]} 13. fxe3 {[%clk 0:02:41]}  f6 {[%clk 0:02:34]} 14. e5 {[%clk 0:02:38]}  O-O-O {[%clk 0:02:31]} 15. d4 {[%clk 0:02:33]}  Kb8 {[%clk 0:02:13]} 16. Kh1 {[%clk 0:02:33]}  fxe5 {[%clk 0:02:06]} 17. Nxe5 {[%clk 0:02:33]}  Qe7 {[%clk 0:02:03]} 18. Bf3 {[%clk 0:02:29]}  Qg5 {[%clk 0:01:52]} 19. Qe2 {[%clk 0:02:09]}  Rhe8 {[%clk 0:01:44]} 20. Rfb1 {[%clk 0:02:00]}  Bf5 {[%clk 0:01:39]} 21. Rf1 {[%clk 0:01:50]}  Rxe5 {[%clk 0:01:32]} 22. dxe5 {[%clk 0:01:50]}  Bd3 {[%clk 0:01:32]} 23. Qf2 {[%clk 0:01:44]}  Bxf1 {[%clk 0:01:22]} 24. Rxf1 {[%clk 0:01:45]}  Qxe5 {[%clk 0:01:21]} 25. Re1 {[%clk 0:01:40]}  c4 {[%clk 0:01:15]} 26. Qh4 {[%clk 0:01:33]}  g5 {[%clk 0:01:02]} 27. Qxc4 {[%clk 0:01:28]}  Rd2 {[%clk 0:00:57]} 28. b4 {[%clk 0:01:23]}  c6 {[%clk 0:00:50]} 29. b5 {[%clk 0:01:12]}  Bc7 {[%clk 0:00:49]} 30. Qg8+ {[%clk 0:01:08]}  Rd8 {[%clk 0:00:37]} 31. Qxh7 {[%clk 0:01:08]}  Rh8 {[%clk 0:00:36]} 32. Qxh8+ {[%clk 0:01:08]}  Qxh8 {[%clk 0:00:34]} 33. h3 {[%clk 0:01:04]}  Qe5 {[%clk 0:00:33]} 34. Kg1 {[%clk 0:01:04]}  Qh2+ {[%clk 0:00:32]} 35. Kf1 {[%clk 0:01:03]}  Bg3 {[%clk 0:00:32]} 36. Rd1 {[%clk 0:00:58]}  Kc7 {[%clk 0:00:30]} 37. bxc6 {[%clk 0:00:53]}  bxc6 {[%clk 0:00:30]} 38. Ke2 {[%clk 0:00:52]}  Be5 {[%clk 0:00:30]} 39. Kd3 {[%clk 0:00:48]}  Bd6 {[%clk 0:00:29]} 40. Kc2 {[%clk 0:00:43]}  Qe5 {[%clk 0:00:29]} 41. Rd3 {[%clk 0:00:42]}  Qe6 {[%clk 0:00:30]} 42. Kb2 {[%clk 0:00:36]}  Bc5 {[%clk 0:00:29]} 43. e4 {[%clk 0:00:30]}  Qc4 {[%clk 0:00:28]} 44. Rd2 {[%clk 0:00:23]}  Qxa4 {[%clk 0:00:28]} 45. e5 {[%clk 0:00:23]}  Ba3+ {[%clk 0:00:27]} 46. Kb1 {[%clk 0:00:20]}  Qb3+ {[%clk 0:00:27]} 47. Ka1 {[%clk 0:00:20]}  Qxc3+ {[%clk 0:00:27]} 0-1


[Site "https://www.chess.com"]

[Event "Titled Tuesday Blitz April 05 Early 2022"]
[White "Fernandez Siles, Luis"]
[Black "Golubeva, Oksana"]
[WhiteFideId "2209420"]
[BlackFideId "4170164"]
[WhiteElo "2212"]
[BlackElo "2162"]
[Result "1-0"]
[Round "10"]
[TimeControl "180+1"]
[Date "2022.04.05"]
[WhiteClock "0:00:08"]
[BlackClock "0:00:08"]

1. e4 {[%clk 0:02:57]}  e6 {[%clk 0:02:59]} 2. d4 {[%clk 0:02:53]}  d5 {[%clk 0:02:59]} 3. Nd2 {[%clk 0:02:52]}  c5 {[%clk 0:02:59]} 4. c3 {[%clk 0:02:49]}  Nf6 {[%clk 0:02:58]} 5. Bd3 {[%clk 0:02:47]}  cxd4 {[%clk 0:02:57]} 6. cxd4 {[%clk 0:02:47]}  Nc6 {[%clk 0:02:57]} 7. Ngf3 {[%clk 0:02:46]}  Bb4 {[%clk 0:02:56]} 8. e5 {[%clk 0:02:28]}  Ne4 {[%clk 0:02:55]} 9. O-O {[%clk 0:02:26]}  Nxd2 {[%clk 0:02:44]} 10. Bxd2 {[%clk 0:02:27]}  Be7 {[%clk 0:02:45]} 11. g3 {[%clk 0:02:09]}  Qb6 {[%clk 0:02:43]} 12. Bc3 {[%clk 0:02:04]}  Bd7 {[%clk 0:02:44]} 13. h4 {[%clk 0:02:04]}  h6 {[%clk 0:02:39]} 14. h5 {[%clk 0:02:00]}  O-O-O {[%clk 0:02:36]} 15. a4 {[%clk 0:01:51]}  Bb4 {[%clk 0:02:24]} 16. Qd2 {[%clk 0:01:43]}  a5 {[%clk 0:02:23]} 17. Bb5 {[%clk 0:01:42]}  Kb8 {[%clk 0:02:14]} 18. Bxc6 {[%clk 0:01:38]}  Bxc6 {[%clk 0:02:14]} 19. Bxb4 {[%clk 0:01:37]}  Qxb4 {[%clk 0:02:14]} 20. Qxb4 {[%clk 0:01:37]}  axb4 {[%clk 0:02:15]} 21. Rfc1 {[%clk 0:01:16]}  Rc8 {[%clk 0:02:15]} 22. Kf1 {[%clk 0:01:04]}  Rc7 {[%clk 0:02:11]} 23. Ke2 {[%clk 0:01:02]}  Rhc8 {[%clk 0:02:10]} 24. Kd2 {[%clk 0:01:02]}  f6 {[%clk 0:02:08]} 25. Rc5 {[%clk 0:00:53]}  Be8 {[%clk 0:02:05]} 26. Rxc7 {[%clk 0:00:46]}  Rxc7 {[%clk 0:02:06]} 27. g4 {[%clk 0:00:40]}  Ka7 {[%clk 0:01:55]} 28. Rc1 {[%clk 0:00:21]}  Rxc1 {[%clk 0:01:49]} 29. Kxc1 {[%clk 0:00:22]}  Bxa4 {[%clk 0:01:49]} 30. Kd2 {[%clk 0:00:19]}  Kb6 {[%clk 0:01:48]} 31. Nh4 {[%clk 0:00:16]}  Kc7 {[%clk 0:01:43]} 32. Ng2 {[%clk 0:00:16]}  Kd7 {[%clk 0:01:30]} 33. f4 {[%clk 0:00:16]}  Kc7 {[%clk 0:01:26]} 34. Ne3 {[%clk 0:00:16]}  Be8 {[%clk 0:01:25]} 35. f5 {[%clk 0:00:09]}  Kd7 {[%clk 0:01:23]} 36. exf6 {[%clk 0:00:08]}  gxf6 {[%clk 0:01:23]} 37. fxe6+ {[%clk 0:00:08]}  Kxe6 {[%clk 0:01:22]} 38. Nf5 {[%clk 0:00:08]}  Bd7 {[%clk 0:00:37]} 39. Nxh6 {[%clk 0:00:08]}  Ke7 {[%clk 0:00:35]} 40. Nf5+ {[%clk 0:00:08]}  Kf7 {[%clk 0:00:35]} 41. Ke3 {[%clk 0:00:07]}  Ba4 {[%clk 0:00:35]} 42. Kf4 {[%clk 0:00:07]}  Bd1 {[%clk 0:00:35]} 43. h6 {[%clk 0:00:05]}  Kg6 {[%clk 0:00:34]} 44. Ne7+ {[%clk 0:00:05]}  Kxh6 {[%clk 0:00:34]} 45. Nxd5 {[%clk 0:00:06]}  Kg6 {[%clk 0:00:30]} 46. Nxb4 {[%clk 0:00:06]}  Kf7 {[%clk 0:00:30]} 47. Nd5 {[%clk 0:00:02]}  Ke6 {[%clk 0:00:28]} 48. Nc3 {[%clk 0:00:03]}  Bc2 {[%clk 0:00:27]} 49. g5 {[%clk 0:00:03]}  fxg5+ {[%clk 0:00:28]} 50. Kxg5 {[%clk 0:00:04]}  Kd6 {[%clk 0:00:25]} 51. Kf4 {[%clk 0:00:05]}  Bg6 {[%clk 0:00:24]} 52. Ke3 {[%clk 0:00:04]}  Bf7 {[%clk 0:00:24]} 53. Kd3 {[%clk 0:00:03]}  Bg6+ {[%clk 0:00:24]} 54. Kc4 {[%clk 0:00:04]}  Kc6 {[%clk 0:00:25]} 55. d5+ {[%clk 0:00:04]}  Kd7 {[%clk 0:00:25]} 56. Kc5 {[%clk 0:00:03]}  Bf7 {[%clk 0:00:24]} 57. Nb5 {[%clk 0:00:04]}  b6+ {[%clk 0:00:24]} 58. Kd4 {[%clk 0:00:03]}  Bg8 {[%clk 0:00:23]} 59. Nc3 {[%clk 0:00:04]}  Kd6 {[%clk 0:00:24]} 60. b4 {[%clk 0:00:04]}  Bf7 {[%clk 0:00:21]} 61. Ne4+ {[%clk 0:00:05]}  Kd7 {[%clk 0:00:21]} 62. Ke5 {[%clk 0:00:06]}  Bg6 {[%clk 0:00:21]} 63. Nf6+ {[%clk 0:00:06]}  Ke7 {[%clk 0:00:21]} 64. d6+ {[%clk 0:00:07]}  Kd8 {[%clk 0:00:22]} 65. Nd5 {[%clk 0:00:06]}  b5 {[%clk 0:00:20]} 66. Nf6 {[%clk 0:00:06]}  Bd3 {[%clk 0:00:19]} 67. Kd4 {[%clk 0:00:06]}  Bf1 {[%clk 0:00:20]} 68. Kc5 {[%clk 0:00:07]}  Be2 {[%clk 0:00:19]} 69. Kc6 {[%clk 0:00:07]}  Bd3 {[%clk 0:00:17]} 70. Nd5 {[%clk 0:00:07]}  Be4 {[%clk 0:00:16]} 71. Kc5 {[%clk 0:00:06]}  Bd3 {[%clk 0:00:16]} 72. Nc7 {[%clk 0:00:05]}  Kc8 {[%clk 0:00:14]} 73. Nxb5 {[%clk 0:00:06]}  Kb7 {[%clk 0:00:12]} 74. Nd4 {[%clk 0:00:07]}  Bg6 {[%clk 0:00:11]} 75. b5 {[%clk 0:00:07]}  Be8 {[%clk 0:00:11]} 76. b6 {[%clk 0:00:08]}  Bd7 {[%clk 0:00:11]} 77. Nb5 {[%clk 0:00:07]}  Be6 {[%clk 0:00:09]} 78. Na3 {[%clk 0:00:08]}  Bd7 {[%clk 0:00:09]} 79. Nc4 {[%clk 0:00:08]}  Be6 {[%clk 0:00:08]} 80. Na5+ {[%clk 0:00:09]}  Kc8 {[%clk 0:00:08]} 81. b7+ {[%clk 0:00:08]}  Kb8 {[%clk 0:00:08]} 82. Kd4 {[%clk 0:00:06]}  Bd7 {[%clk 0:00:08]} 83. Ke5 {[%clk 0:00:06]}  Ka7 {[%clk 0:00:07]} 84. Kf6 {[%clk 0:00:06]}  Kb8 {[%clk 0:00:07]} 85. Ke7 {[%clk 0:00:06]}  Bb5 {[%clk 0:00:06]} 86. d7 {[%clk 0:00:07]}  Bxd7 {[%clk 0:00:06]} 87. Kxd7 {[%clk 0:00:07]}  Ka7 {[%clk 0:00:07]} 88. Kc7 {[%clk 0:00:07]}  Ka6 {[%clk 0:00:07]} 89. b8=Q {[%clk 0:00:08]}  Kxa5 {[%clk 0:00:07]} 90. Qb3 {[%clk 0:00:08]}  Ka6 {[%clk 0:00:08]} 91. Qb6# {[%clk 0:00:08]} 1-0


[Site "https://www.chess.com"]

[Event "Titled Tuesday Blitz April 05 Early 2022"]
[White "Harshavardhan G B"]
[Black "Pires, Marcos Vinicius Torsani"]
[WhiteFideId "25059009"]
[BlackFideId "2118939"]
[WhiteElo "1831"]
[BlackElo "2273"]
[Result "1-0"]
[Round "10"]
[TimeControl "180+1"]
[Date "2022.04.05"]
[WhiteClock "0:01:42"]
[BlackClock "0:00:20"]

1. Nf3 {[%clk 0:02:41]}  c5 {[%clk 0:02:51]} 2. e4 {[%clk 0:02:38]}  g6 {[%clk 0:02:50]} 3. d4 {[%clk 0:02:34]}  cxd4 {[%clk 0:02:51]} 4. Qxd4 {[%clk 0:02:35]}  Nf6 {[%clk 0:02:45]} 5. Bb5 {[%clk 0:02:30]}  Nc6 {[%clk 0:02:33]} 6. Bxc6 {[%clk 0:02:28]}  bxc6 {[%clk 0:02:34]} 7. e5 {[%clk 0:02:27]}  Nd5 {[%clk 0:02:34]} 8. c4 {[%clk 0:02:27]}  Nc7 {[%clk 0:02:16]} 9. Nc3 {[%clk 0:02:26]}  Bg7 {[%clk 0:02:15]} 10. Qh4 {[%clk 0:02:25]}  O-O {[%clk 0:02:05]} 11. Bh6 {[%clk 0:02:24]}  Ne6 {[%clk 0:02:04]} 12. O-O {[%clk 0:02:21]}  Rb8 {[%clk 0:01:53]} 13. b3 {[%clk 0:02:20]}  Qa5 {[%clk 0:01:48]} 14. Ne4 {[%clk 0:02:14]}  f6 {[%clk 0:01:23]} 15. Rfe1 {[%clk 0:02:07]}  Nc5 {[%clk 0:01:08]} 16. exf6 {[%clk 0:01:57]}  exf6 {[%clk 0:01:08]} 17. Bxg7 {[%clk 0:01:54]}  Kxg7 {[%clk 0:01:05]} 18. Nxf6 {[%clk 0:01:48]}  Rxf6 {[%clk 0:00:49]} 19. Re7+ {[%clk 0:01:48]}  Rf7 {[%clk 0:00:49]} 20. Rxf7+ {[%clk 0:01:46]}  Kxf7 {[%clk 0:00:50]} 21. Qf4+ {[%clk 0:01:47]}  Kg7 {[%clk 0:00:28]} 22. Qxb8 {[%clk 0:01:47]}  Bb7 {[%clk 0:00:21]} 23. Qe5+ {[%clk 0:01:44]}  Kg8 {[%clk 0:00:20]} 24. Re1 {[%clk 0:01:42]} 1-0


[Site "https://www.chess.com"]

[Event "Titled Tuesday Blitz April 05 Early 2022"]
[White "Hoffmann, Asa"]
[Black "Shohat, Yotam"]
[WhiteFideId "2001470"]
[BlackFideId "2813955"]
[WhiteElo "2117"]
[BlackElo "2119"]
[Result "1-0"]
[Round "10"]
[TimeControl "180+1"]
[Date "2022.04.05"]
[WhiteClock "0:00:53"]
[BlackClock "0:00:03"]

1. d4 {[%clk 0:02:59]}  Nf6 {[%clk 0:02:59]} 2. Bg5 {[%clk 0:02:56]}  Ne4 {[%clk 0:02:57]} 3. Bf4 {[%clk 0:02:56]}  c5 {[%clk 0:02:55]} 4. f3 {[%clk 0:02:55]}  Qa5+ {[%clk 0:02:52]} 5. c3 {[%clk 0:02:54]}  Nf6 {[%clk 0:02:52]} 6. d5 {[%clk 0:02:53]}  e6 {[%clk 0:02:48]} 7. e4 {[%clk 0:02:52]}  exd5 {[%clk 0:02:46]} 8. exd5 {[%clk 0:02:52]}  d6 {[%clk 0:02:44]} 9. Qd2 {[%clk 0:02:52]}  Be7 {[%clk 0:02:40]} 10. c4 {[%clk 0:02:52]}  Qxd2+ {[%clk 0:02:38]} 11. Kxd2 {[%clk 0:02:52]}  b5 {[%clk 0:02:36]} 12. Nc3 {[%clk 0:02:51]}  b4 {[%clk 0:02:31]} 13. Nb5 {[%clk 0:02:50]}  Kd7 {[%clk 0:02:28]} 14. g3 {[%clk 0:02:42]}  Ne8 {[%clk 0:02:01]} 15. a3 {[%clk 0:02:36]}  g5 {[%clk 0:01:24]} 16. Be3 {[%clk 0:02:28]}  Nc7 {[%clk 0:01:16]} 17. Nxc7 {[%clk 0:02:23]}  Kxc7 {[%clk 0:01:17]} 18. axb4 {[%clk 0:02:23]}  cxb4 {[%clk 0:01:16]} 19. Rxa7+ {[%clk 0:02:16]}  Rxa7 {[%clk 0:01:13]} 20. Bxa7 {[%clk 0:02:16]}  Bf6 {[%clk 0:00:50]} 21. b3 {[%clk 0:02:09]}  Bc3+ {[%clk 0:00:47]} 22. Kc2 {[%clk 0:02:07]}  Re8 {[%clk 0:00:45]} 23. Ne2 {[%clk 0:02:05]}  Bf5+ {[%clk 0:00:42]} 24. Kc1 {[%clk 0:02:03]}  Na6 {[%clk 0:00:36]} 25. Kd1 {[%clk 0:01:45]}  g4 {[%clk 0:00:16]} 26. fxg4 {[%clk 0:01:40]}  Be4 {[%clk 0:00:13]} 27. Rg1 {[%clk 0:01:39]}  Bf3 {[%clk 0:00:13]} 28. g5 {[%clk 0:01:25]}  Nc5 {[%clk 0:00:12]} 29. Bxc5 {[%clk 0:01:24]}  dxc5 {[%clk 0:00:13]} 30. g4 {[%clk 0:01:23]}  Re3 {[%clk 0:00:09]} 31. Rg3 {[%clk 0:01:22]}  Rd3+ {[%clk 0:00:09]} 32. Kc1 {[%clk 0:01:20]}  Kd6 {[%clk 0:00:04]} 33. Nxc3 {[%clk 0:01:17]}  Rxc3+ {[%clk 0:00:03]} 34. Kb2 {[%clk 0:01:12]}  Ke5 {[%clk 0:00:03]} 35. Bg2 {[%clk 0:01:11]}  Bxg2 {[%clk 0:00:03]} 36. Rxg2 {[%clk 0:01:11]}  Rd3 {[%clk 0:00:03]} 37. Rf2 {[%clk 0:01:10]}  Kd4 {[%clk 0:00:02]} 38. d6 {[%clk 0:01:08]}  Ke3 {[%clk 0:00:02]} 39. Rf5 {[%clk 0:00:54]}  Rd2+ {[%clk 0:00:02]} 40. Kc1 {[%clk 0:00:54]}  Rxd6 {[%clk 0:00:03]} 41. Rxc5 {[%clk 0:00:54]}  Kd3 {[%clk 0:00:03]} 42. Rd5+ {[%clk 0:00:53]} 1-0


[Site "https://www.chess.com"]